lending/lending_fUSD_20260206
["ID","MTS","AMOUNT","RATE_DAILY","PERIOD"]
[404676408,1770417043368,-25000.0,0.000179,3]
[404676409,1770417043378,-18692.29918791,0.000179,3]
[404676410,1770417043392,-5450.15209725,0.000179,2]
[404676411,1770417043401,-1203.8334773,0.000179,2]
[404676412,1770417043411,-889.549055,0.000179,2]
[404676413,1770417043420,-889.549055,0.000179,2]
[404676414,1770417043430,-889.549055,0.000179,2]
[404676415,1770417043440,-889.549055,0.000179,2]
[404676416,1770417043449,-151.0,0.000179,2]
[404676417,1770417043459,-500.0,0.000179,2]
[404676418,1770417043627,-500.0,0.000179,2]
[404676419,1770417043637,-500.0,0.000179,2]
[404676420,1770417043647,-500.0,0.000179,2]
[404676421,1770417043656,-500.0,0.000179,2]
[404676422,1770417043666,-500.0,0.000179,2]
[404676423,1770417043676,-500.0,0.000179,2]
[404676424,1770417043686,-347.68754819,0.000179,2]
[404676425,1770417043698,-1575.0,0.000179,2]
[404676426,1770417043708,-14456.4168817,0.00017975,2]
[404676427,1770417043718,-108399.61084,0.00017975,2]
[404676428,1770417043727,-224.46993276,0.00017982,2]
[404676429,1770417043741,-202255.88709661,0.0001799,3]
[404676430,1770417043751,-202.419,0.00017999,2]
[404676431,1770417043761,-500.0,0.00017999,2]
[404676432,1770417043772,-500.0,0.00017999,2]
[404676433,1770417043784,-516.54058196,0.00017999,2]
[404676434,1770417043794,-13720.80612877,0.00017999,2]
[404676435,1770417043804,-300.0,0.00017999,2]
[404676436,1770417043814,-300.0,0.00017999,2]
[404676437,1770417043824,-666.0,0.00017999,2]
[404676438,1770417043833,-300.0,0.00017999,2]
[404676439,1770417043842,-666.0,0.00017999,2]
[404676440,1770417043852,-1272.0,0.00017999,2]
[404676441,1770417043861,-150.0,0.00017999,2]
[404676442,1770417043871,-1205.0,0.00017999,2]
[404676443,1770417043881,-926.315,0.00017999,2]
[404676444,1770417043890,-6942388.96085014,0.00018,2]
[404676445,1770417043902,-665.700437,0.00018,2]
[404676446,1770417043913,-1866.07550372,0.00018,2]
[404676447,1770417043974,-438.0,0.00018,2]
[404676448,1770417044089,-1677.92850623,0.00018,2]
[404676449,1770417044219,-809.74516329,0.00018,2]
[404676450,1770417044231,-7804.7826229,0.00018,2]
[404676451,1770417044246,-768.814502,0.00018,2]
[404676452,1770417044258,-1130.776072,0.00018,2]
[404676489,1770417045543,-61290.89114272,0.00018,2]
[404676491,1770417045555,-38189.82715458,0.00018,2]
[404676493,1770417045567,-11842.41575739,0.00018,2]
[404676494,1770417045610,-14125.8,0.00018,2]
[404676495,1770417045623,-4114.4,0.00018,2]
[404676496,1770417045635,-7315.5683,0.00018,2]
[404676499,1770417045785,-11947.57819722,0.00018,2]
[404676500,1770417045797,-707.29,0.00018,2]
[404676501,1770417045843,-1999.958517,0.00018,2]
[404676506,1770417082831,172.0,9.8e-07,2]
[404676508,1770417884892,-7164.95,0.00011233,2]
[404676509,1770417890107,-1629.25107586,0.00012356,2]
[404676510,1770417890127,-300.0,0.00012356,2]
[404676511,1770417894603,-2783.806356,0.00012674,2]
[404676512,1770417900882,-230.49,0.00012738,2]
[404676513,1770417900903,-195.0,0.00012749,2]
[404676514,1770417900923,-1852.42,0.00012781,2]
[404676515,1770417900952,-770.75,0.00012781,2]
[404676516,1770417911313,-700.0,0.00013026,2]
[404676517,1770417920655,-150.0,0.00013026,2]
[404676518,1770418034186,1000.0,0.00035616,120]
[404676519,1770418034475,1000.0,0.00035616,120]
[404676520,1770418034752,1000.0,0.00035616,120]
[404676521,1770418035383,1000.0,0.00035616,120]
[404676522,1770418211521,8492.45639557,0.00035616,120]
[404676533,1770418231790,-357.56662876,0.00012466,2]
[404676534,1770418231802,-573.33337124,0.00012466,2]
[404676535,1770418231811,-140.82799393,0.00012466,2]
[404676542,1770418232009,-111.17200607,0.00012466,2]
[404676543,1770418232018,-557.31,0.00012563,2]
[404676545,1770418232031,-77.2900689,0.00012638,2]
[404676548,1770418232041,-172.7099311,0.00012638,2]
[404676550,1770418232051,-206.89,0.00012712,2]
[404676552,1770418232060,-247.48,0.00012712,2]
[404676554,1770418232069,-250.0,0.0001282,2]
[404676556,1770418232079,-195.0,0.00012856,2]
[404676557,1770418232088,-195.0,0.00012973,2]
[404676560,1770418232099,-264.25342189,0.00012999,2]
[404676561,1770418232108,-1338.55691243,0.00012999,2]
[404676574,1770418232289,-236.38579423,0.00012999,2]
[404676575,1770418232298,-63.78340577,0.00013026,2]
[404676576,1770418237771,-958.83986635,0.00012982,2]
[404676577,1770418237884,-1120.43290127,0.00012982,2]
[404676578,1770418237895,-911.35867628,0.00012982,2]
[404676579,1770418237937,-2457.9585561,0.00012982,2]
[404676580,1770418237947,-4117.62,0.00012982,2]
[404676581,1770418237956,-4117.62,0.00013006,2]
[404676582,1770418237966,-1136.21659423,0.00013026,2]
[404676583,1770418237975,-155.3,0.00013027,2]
[404676584,1770418237985,-1796.48,0.00013027,2]
[404676585,1770418237996,-4117.62,0.0001303,2]
[404676586,1770418238006,-4117.62,0.00013054,2]
[404676587,1770418238016,-4117.62,0.00013078,2]
[404676588,1770418238027,-549.80868577,0.0001308,2]
[404676589,1770418238040,-186.6020448,0.00013087,2]
[404676590,1770418238050,-425.42133855,0.00013089,2]
[404676591,1770418238059,-315.0744335,0.00013089,2]
[404676592,1770418238068,-500.0,0.00013089,2]
[404676593,1770418238079,-334.86822848,0.00013089,2]
[404676594,1770418238088,-162.36335467,0.00013089,2]
[404676595,1770418238098,-500.0,0.00013089,2]
[404676596,1770418238109,-1575259.93070372,0.0001309,2]
[404676598,1770418238120,-367.0,0.0001309,2]
[404676603,1770418239827,-10208.49682375,0.0001309,2]
[404676604,1770418240139,-1914164.57247253,0.0001309,2]
[404676605,1770418240149,-4117.62,0.00013102,2]
[404676606,1770418240158,-4117.62,0.00013126,2]
[404676607,1770418240167,-4117.62,0.0001315,2]
[404676608,1770418240176,-4117.62,0.00013173,2]
[404676609,1770418240186,-205.0541739,0.00013187,2]
[404676610,1770418240195,-10778.06,0.0001319,2]
[404676611,1770418240204,-4117.62,0.00013197,2]
[404676613,1770418240213,-264.25342189,0.00013213,2]
[404676614,1770418240223,-4117.62,0.00013221,2]
[404676615,1770418240232,-500.0,0.00013237,2]
[404676616,1770418240241,-999.99,0.00013237,2]
[404676617,1770418240251,-4117.62,0.00013245,2]
[404676618,1770418240260,-4117.62,0.00013269,2]
[404676619,1770418240269,-150.0,0.00013286,2]
[404676620,1770418240279,-1222.14,0.00013287,2]
[404676621,1770418240288,-150.99,0.00013287,2]
[404676622,1770418240296,-150.99,0.00013287,2]
[404676623,1770418240306,-299.99,0.00013287,2]
[404676624,1770418240315,-6130.07,0.00013287,2]
[404676625,1770418240324,-310.94,0.00013287,2]
[404676626,1770418240333,-9999.99,0.00013287,2]
[404676627,1770418240342,-349.97,0.00013287,2]
[404676628,1770418240351,-4117.62,0.00013293,2]
[404676629,1770418240361,-289.34,0.000133,2]
[404676630,1770418240369,-9999.99,0.000133,2]
[404676631,1770418240378,-4117.62,0.00013317,2]
[404676632,1770418240387,-150.0,0.00013334,2]
[404676633,1770418240397,-150.0,0.00013334,2]
[404676634,1770418240406,-150.0,0.00013334,2]
[404676635,1770418240415,-150.0,0.00013334,2]
[404676636,1770418240425,-4117.62,0.00013341,2]
[404676637,1770418240435,-150.0,0.00013389,2]
[404676638,1770418240444,-150.0,0.00013389,2]
[404676639,1770418240453,-264.25342189,0.00013426,2]
[404676640,1770418240463,-1910.41,0.0001344,2]
[404676641,1770418240472,-182.54855076,0.00013444,2]
[404676642,1770418240482,-200.0,0.00013444,2]
[404676643,1770418240491,-2500.0,0.00013509,2]
[404676644,1770418240500,-4790.21709591,0.00013526,2]
[404676645,1770418240510,-926.80859507,0.00013526,2]
[404676646,1770418240519,-15237.8716601,0.00013526,2]
[404676647,1770418240529,-177.74000607,0.00013526,2]
[404676648,1770418240539,-1816.71736575,0.00013526,2]
[404676649,1770418240548,-2669.65,0.0001354,2]
[404676650,1770418240557,-160.0,0.00013565,2]
[404676651,1770418240567,-549.80868577,0.00013598,2]
[404676652,1770418240576,-200.0,0.000136,4]
[404676653,1770418240585,-151.0,0.00013601,2]
[404676654,1770418240594,-151.0,0.00013601,2]
[404676655,1770418240604,-151.0,0.00013601,2]
[404676656,1770418240613,-151.0,0.00013601,2]
[404676657,1770418240622,-151.0,0.00013601,2]
[404676658,1770418240632,-151.0,0.00013601,2]
[404676659,1770418240641,-151.0,0.00013601,2]
[404676660,1770418240650,-151.0,0.00013601,2]
[404676661,1770418240659,-151.0,0.00013601,2]
[404676662,1770418240668,-151.0,0.00013601,2]
[404676663,1770418240678,-151.0,0.00013601,2]
[404676664,1770418240687,-151.0,0.00013601,2]
[404676665,1770418240696,-151.0,0.00013601,2]
[404676666,1770418240705,-151.0,0.00013601,2]
[404676667,1770418240715,-151.0,0.00013601,2]
[404676668,1770418240724,-151.0,0.00013601,2]
[404676669,1770418240733,-151.0,0.00013601,2]
[404676670,1770418240742,-151.0,0.00013601,2]
[404676671,1770418240752,-151.0,0.00013601,2]
[404676672,1770418240761,-151.0,0.00013601,2]
[404676673,1770418240770,-151.0,0.00013601,2]
[404676674,1770418240779,-151.0,0.00013601,2]
[404676675,1770418240789,-151.0,0.00013601,2]
[404676676,1770418240799,-151.0,0.00013601,2]
[404676677,1770418240808,-151.0,0.00013601,2]
[404676678,1770418240817,-151.0,0.00013601,2]
[404676679,1770418240826,-151.0,0.00013601,2]
[404676680,1770418240834,-151.0,0.00013601,2]
[404676681,1770418240843,-151.0,0.00013601,2]
[404676682,1770418240853,-151.0,0.00013601,2]
[404676683,1770418240862,-151.0,0.00013601,2]
[404676684,1770418240871,-500.0,0.00013626,2]
[404676685,1770418240880,-500.0,0.00013698,2]
[404676686,1770418240889,-500.0,0.00013698,2]
[404676687,1770418240899,-500.0,0.00013698,2]
[404676688,1770418240908,-500.0,0.00013698,2]
[404676689,1770418240918,-500.0,0.00013698,2]
[404676690,1770418240927,-500.0,0.00013698,2]
[404676691,1770418240936,-446.12869816,0.00013698,2]
[404676692,1770418240946,-200.0,0.00013699,2]
[404676693,1770418240955,-500.0,0.00013699,2]
[404676694,1770418240965,-500.0,0.000137,5]
[404676695,1770418240975,-1043.79,0.00013709,2]
[404676696,1770418240984,-195.0,0.00013712,2]
[404676697,1770418240993,-300.0,0.00013712,2]
[404676698,1770418241002,-511.81,0.00013726,2]
[404676699,1770418241012,-800.0,0.000138,5]
[404676700,1770418241021,-250.0,0.00013819,2]
[404676701,1770418241036,-300.0,0.00013819,2]
[404676702,1770418241045,-600.0,0.00013819,2]
[404676703,1770418241055,-600.0,0.00013819,2]
[404676704,1770418241064,-600.0,0.00013819,2]
[404676705,1770418241074,-600.0,0.00013819,2]
[404676706,1770418241083,-600.0,0.00013819,2]
[404676707,1770418241092,-155.3,0.00013841,2]
[404676708,1770418241105,-4549.277,0.00013898,2]
[404676709,1770418241114,-393.646,0.00013898,2]
[404676710,1770418241123,-1100.0,0.000139,5]
[404676711,1770418241132,-300.0,0.00013984,2]
[404676712,1770418241142,-195.0,0.00013984,2]
[404676713,1770418241151,-4790.21709587,0.00014001,2]
[404676714,1770418241161,-15237.87166005,0.00014001,2]
[404676715,1770418241171,-206.16113246,0.00014147,2]
[404676716,1770418241180,-600.0,0.00014226,2]
[404676717,1770418241189,-343.39,0.00014226,2]
[404676718,1770418241198,-500.0,0.00014239,2]
[404676719,1770418241207,-500.0,0.00014239,2]
[404676720,1770418241216,-500.0,0.00014239,2]
[404676721,1770418241225,-500.0,0.00014239,2]
[404676722,1770418241235,-500.0,0.00014239,2]
[404676723,1770418241244,-571.90548312,0.00014239,2]
[404676724,1770418241253,-500.0,0.00014239,2]
[404676725,1770418241263,-503.69401691,0.00014239,2]
[404676726,1770418241273,-500.0,0.00014239,2]
[404676727,1770418241283,-500.0,0.00014239,2]
[404676728,1770418241292,-500.0,0.00014239,2]
[404676729,1770418241301,-500.0,0.00014239,2]
[404676730,1770418241316,-500.0,0.00014239,2]
[404676731,1770418241325,-500.0,0.00014239,2]
[404676732,1770418241335,-500.0,0.00014239,2]
[404676733,1770418241344,-500.0,0.00014239,2]
[404676734,1770418241511,-500.0,0.00014239,2]
[404676735,1770418241522,-500.0,0.00014239,2]
[404676736,1770418241532,-500.0,0.00014239,2]
[404676737,1770418241542,-500.0,0.00014239,2]
[404676738,1770418241552,-500.0,0.00014239,2]
[404676739,1770418241562,-500.0,0.00014239,2]
[404676740,1770418241571,-500.0,0.00014239,2]
[404676741,1770418241580,-500.0,0.00014239,2]
[404676742,1770418241589,-500.0,0.00014239,2]
[404676743,1770418241599,-500.0,0.00014239,2]
[404676744,1770418241608,-500.0,0.00014239,2]
[404676745,1770418241617,-500.0,0.00014239,2]
[404676746,1770418241627,-500.0,0.00014239,2]
[404676747,1770418241636,-500.0,0.00014239,2]
[404676748,1770418241645,-532.65205018,0.00014239,2]
[404676749,1770418241655,-500.0,0.00014239,2]
[404676750,1770418241664,-500.0,0.00014239,2]
[404676751,1770418241674,-500.0,0.00014239,2]
[404676752,1770418241683,-587.5541255,0.00014239,2]
[404676753,1770418241693,-500.0,0.00014239,2]
[404676754,1770418241703,-523.26417397,0.00014239,2]
[404676755,1770418241712,-500.0,0.00014239,2]
[404676756,1770418241721,-283.9117133,0.00014239,2]
[404676757,1770418241731,-500.0,0.00014239,2]
[404676758,1770418241740,-500.0,0.00014239,2]
[404676759,1770418241749,-500.0,0.00014239,2]
[404676760,1770418241759,-500.0,0.00014239,2]
[404676761,1770418241768,-500.0,0.00014239,2]
[404676762,1770418241777,-500.0,0.00014239,2]
[404676763,1770418241787,-500.0,0.00014239,2]
[404676764,1770418241796,-353.03533501,0.00014239,2]
[404676765,1770418241806,-1000.0,0.00014247,2]
[404676766,1770418241815,-926.80859507,0.00014255,2]
[404676767,1770418241824,-195.0,0.00014329,2]
[404676768,1770418241834,-300.0,0.00014329,2]
[404676769,1770418241843,-2500.0,0.00014329,2]
[404676770,1770418241852,-2500.0,0.00014329,2]
[404676771,1770418241861,-2500.0,0.00014329,2]
[404676772,1770418241871,-1011.12334837,0.00014329,2]
[404676773,1770418241881,-300.0,0.00014329,2]
[404676774,1770418241890,-1680.0,0.00014329,2]
[404676775,1770418241900,-500.0,0.00014339,2]
[404676776,1770418241910,-511.81,0.00014413,2]
[404676777,1770418241919,-4790.21709587,0.00014476,2]
[404676778,1770418241928,-15237.87166005,0.00014476,2]
[404676779,1770418241938,-379.94,0.00014577,2]
[404676780,1770418241947,-279.93,0.00014589,2]
[404676781,1770418241957,-150.0,0.00014589,2]
[404676782,1770418241966,-155.3,0.00014656,2]
[404676783,1770418241975,-1500.0,0.00014795,2]
[404676784,1770418241985,-7003.8567,0.00014899,2]
[404676785,1770418241994,-1400.0,0.000149,5]
[404676786,1770418242003,-4790.21709587,0.00014951,2]
[404676787,1770418242012,-15237.87166005,0.00014951,2]
[404676788,1770418242022,-20000.0,0.00014959,2]
[404676789,1770418242035,-926.80859507,0.00014984,2]
[404676790,1770418242045,-500.0,0.00014998,2]
[404676791,1770418242055,-500.0,0.00014998,2]
[404676792,1770418242064,-477.29936804,0.00014998,2]
[404676793,1770418242073,-500.0,0.00014998,2]
[404676794,1770418242083,-500.0,0.00014998,2]
[404676795,1770418242092,-500.0,0.00014998,2]
[404676796,1770418242103,-500.0,0.00014998,2]
[404676797,1770418242112,-500.0,0.00014998,2]
[404676798,1770418242122,-500.0,0.00014998,2]
[404676799,1770418242132,-500.0,0.00014998,2]
[404676800,1770418242141,-500.0,0.00014998,2]
[404676801,1770418242150,-500.0,0.00014998,2]
[404676802,1770418242160,-500.0,0.00014998,2]
[404676803,1770418242169,-499.73386374,0.00014998,2]
[404676804,1770418242179,-500.0,0.00014998,2]
[404676805,1770418242188,-500.0,0.00014998,2]
[404676806,1770418242198,-500.0,0.00014998,2]
[404676807,1770418242207,-500.0,0.00014998,2]
[404676808,1770418242217,-500.0,0.00014998,2]
[404676809,1770418242227,-500.0,0.00014998,2]
[404676810,1770418242236,-326.5559361,0.00014998,2]
[404676811,1770418242246,-206.16113244,0.00015085,2]
[404676812,1770418242255,-511.81,0.00015099,2]
[404676813,1770418242264,-150.0,0.000153,2]
[404676814,1770418242274,-1000.0,0.00015342,2]
[404676815,1770418242284,-4790.21709587,0.00015426,2]
[404676816,1770418242294,-15237.87166005,0.00015426,2]
[404676817,1770418242303,-500.0,0.00015454,2]
[404676818,1770418242312,-155.3,0.0001547,2]
[404676819,1770418242322,-516.54058196,0.0001548,2]
[404676820,1770418242331,-232758.4,0.00015481,2]
[404676821,1770418242341,-926.80859507,0.00015713,2]
[404676822,1770418242351,-177.74000607,0.00015713,2]
[404676823,1770418242360,-1816.71736575,0.00015713,2]
[404676824,1770418242370,-932.0,0.00015762,2]
[404676825,1770418242379,-511.81,0.00015785,2]
[404676826,1770418242389,-4790.21709587,0.000159,2]
[404676827,1770418242399,-15237.87166005,0.000159,2]
[404676828,1770418242408,-7873.41,0.00015987,2]
[404676829,1770418242417,-305.85316486,0.00016021,2]
[404676830,1770418242426,-206.16113244,0.00016024,2]
[404676831,1770418242436,-155.3,0.00016284,2]
[404676832,1770418242445,-3008.91,0.00016336,2]
[404676833,1770418242454,-4584.8,0.00016336,2]
[404676834,1770418242463,-4790.21709587,0.00016375,2]
[404676835,1770418242472,-15237.87166005,0.00016375,2]
[404676836,1770418242482,-453.98370731,0.00016438,2]
[404676837,1770418242492,-926.80859507,0.00016442,2]
[404676838,1770418242501,-55748.4,0.00016461,2]
[404676839,1770418242511,-250.0,0.00016471,2]
[404676840,1770418242520,-511.81,0.00016472,2]
[404676841,1770418242530,-167.2892748,0.000165,2]
[404676842,1770418242539,-1901.02614896,0.0001673,2]
[404676843,1770418242548,-4790.21709587,0.0001685,2]
[404676844,1770418242558,-15237.87166005,0.0001685,2]
[404676845,1770418242567,-1500.0,0.000169,2]
[404676847,1770418242576,-269.10302672,0.00016928,5]
[404676848,1770418242586,-206.16113244,0.00016962,2]
[404676849,1770418242595,-500.0,0.00017,2]
[404676850,1770418242603,-155.3,0.00017098,2]
[404676851,1770418242613,-926.80859507,0.00017171,2]
[404676852,1770418242622,-1500.0,0.000173,2]
[404676853,1770418242631,-4790.21709587,0.00017325,2]
[404676854,1770418242640,-15237.87166005,0.00017325,2]
[404676855,1770418242649,-200.0,0.000175,6]
[404676856,1770418242658,-200.0,0.000176,6]
[404676857,1770418242667,-2998.4080897,0.0001764,2]
[404676858,1770418242676,-200.0,0.000177,6]
[404676859,1770418242685,-1500.0,0.000177,2]
[404676860,1770418242695,-6624.05669369,0.000178,2]
[404676861,1770418242704,-4790.21709587,0.000178,2]
[404676862,1770418242714,-15237.87166005,0.000178,2]
[404676863,1770418242723,-200.0,0.000178,6]
[404676864,1770418242733,-367.98193808,0.0001782,2]
[404676865,1770418242742,-234.5679,0.0001782,2]
[404676866,1770418242751,-234.5679,0.0001782,2]
[404676867,1770418242760,-25000.0,0.00017891,3]
[404676868,1770418242770,-33301.6812,0.000179,2]
[404676869,1770418242780,-1000.0,0.000179,2]
[404676870,1770418242790,-500.0,0.000179,2]
[404676871,1770418242799,-1500000.0,0.000179,2]
[404676872,1770418242808,-25000.0,0.000179,3]
[404676873,1770418242817,-206.16113244,0.000179,2]
[404676874,1770418242827,-18692.29918791,0.000179,3]
[404676875,1770418242836,-926.80859507,0.000179,2]
[404676876,1770418242845,-190.3990808,0.000179,2]
[404676877,1770418242854,-177.74000607,0.000179,2]
[404676878,1770418242864,-1050.0,0.000179,6]
[404676879,1770418242873,-1816.71736575,0.000179,2]
[404676880,1770418242882,-1148.0,0.000179,2]
[404676881,1770418242892,-155.3,0.00017912,2]
[404676882,1770418242901,-200.0,0.00017961,2]
[404676883,1770418242910,-200.0,0.00017972,2]
[404676884,1770418242920,-224.46993276,0.00017982,2]
[404676885,1770418242929,-12312.6651412,0.00017987,2]
[404676886,1770418242938,-549.80868577,0.00017989,2]
[404676887,1770418242948,-42930.94499142,0.00017998,2]
[404676888,1770418242957,-250140.8456962,0.00017999,2]
[404676889,1770418242967,-85158.4128266,0.00017999,2]
[404676890,1770418242976,-300.0,0.00017999,2]
[404676891,1770418242985,-11356.9182331,0.00017999,2]
[404676892,1770418242994,-23241.1980134,0.00017999,2]
[404676893,1770418243004,-3099.4986487,0.00017999,2]
[404676894,1770418243014,-300.0,0.00017999,2]
[404676895,1770418243023,-300.0,0.00017999,2]
[404676896,1770418243037,-666.0,0.00017999,2]
[404676897,1770418243046,-300.0,0.00017999,2]
[404676898,1770418243055,-666.0,0.00017999,2]
[404676899,1770418243065,-1410.0,0.00017999,2]
[404676900,1770418243074,-1245.271,0.00017999,2]
[404676901,1770418243083,-1272.0,0.00017999,2]
[404676902,1770418243092,-150.0,0.00017999,2]
[404676903,1770418243102,-926.315,0.00017999,2]
[404676904,1770418243111,-1205.0,0.00017999,2]
[404676905,1770418243121,-412.0,0.00017999,2]
[404676906,1770418243130,-3254.0,0.00017999,2]
[404676907,1770418243139,-6582.0,0.00017999,2]
[404676908,1770418243149,-3543515.60564656,0.00018,2]
[404676909,1770418243169,-1790.90494548,0.00013365,2]
[404676910,1770418243180,-590.201478,0.00013365,2]
[404676921,1770418243831,-103.355544,0.00013212,2]
[404676922,1770418244938,-487.82070048,0.00013212,2]
[404676923,1770418244952,-971.62954831,0.00013212,2]
[404676924,1770418244961,-613.27988321,0.00013365,2]
[404676926,1770418244973,-293.47590332,0.00013365,2]
[404676927,1770418244984,-301.0,0.00013365,2]
[404676931,1770418245804,-528.75778999,0.00013365,2]
[404676932,1770418245813,-4117.62,0.00013389,2]
[404676933,1770418245822,-4117.62,0.00013413,2]
[404676934,1770418245831,-4117.62,0.00013437,2]
[404676935,1770418245840,-504.11677041,0.00013698,2]
[404676936,1770418245849,-1562.80579279,0.00014748,2]
[404676937,1770418245858,-1562.80579279,0.00017819,2]
[404676938,1770418245867,-19151.65385402,0.00018,2]
[404676939,1770418245878,-7415.7805,0.00018,2]
[404676940,1770418245888,-3117.80928959,0.00018,2]
[404676941,1770418246092,-8356.0000005,0.00018,2]
[404676942,1770418246107,-4042.11857352,0.00018,2]
[404676944,1770418708501,102096.0,0.00035616,120]
[404676947,1770419155546,10000.0,0.00035,120]
[404676948,1770419374133,-165.61,9.903e-05,2]
[404676949,1770419374153,-165.19828439,9.952e-05,2]
[404676954,1770419431924,-500.0,9.393e-05,2]
[404676955,1770419431934,-175.352,9.941e-05,2]
[404676956,1770419431945,-356.82273408,9.941e-05,2]
[404676957,1770419431957,-226.12636097,9.941e-05,2]
[404676958,1770419431966,-84.80171561,9.952e-05,2]
[404676959,1770419431976,-232.0,9.952e-05,2]
[404676960,1770419431986,-365.06238246,0.0001,2]
[404676961,1770419431995,-250.0,0.00010795,2]
[404676962,1770419432004,-250.0,0.00010893,2]
[404676963,1770419432013,-1142.77,0.00012036,2]
[404676964,1770419432023,-166.66,0.00012316,2]
[404676965,1770419432033,-165.61,0.00012379,2]
[404676966,1770419432043,-756.92999869,0.0001258,2]
[404676967,1770419432058,-760.08420424,0.0001258,2]
[404676968,1770419432068,-1816.71736575,0.0001258,2]
[404676969,1770419432078,-1161.86584992,0.0001258,2]
[404676971,1770419432088,-3033.56205987,0.0001258,2]
[404676973,1770419432097,-150.0,0.0001265,2]
[404676975,1770419432107,-183.26956192,0.00012667,2]
[404676977,1770419432116,-150.0,0.00012675,2]
[404676979,1770419432126,-300.0,0.00012675,2]
[404676981,1770419432135,-1200.0,0.00012675,2]
[404676983,1770419432145,-162.36335467,0.00012676,2]
[404676985,1770419432154,-425.42133855,0.00012676,2]
[404676987,1770419432163,-500.0,0.00012676,2]
[404676989,1770419432172,-315.0744335,0.00012676,2]
[404676991,1770419432181,-487.14801056,0.00012676,2]
[404676993,1770419432194,-12.85198944,0.00012676,2]
[404676995,1770419432203,-334.86822848,0.00012676,2]
[404676997,1770419432212,-500.0,0.00012676,2]
[404676999,1770419432222,-241.16097439,0.00012676,2]
[404677001,1770419432232,-534.44506203,0.00012676,2]
[404677002,1770419432242,-534.44506203,0.00012676,2]
[404677003,1770419432251,-160.53483572,0.00012676,2]
[404677004,1770419432261,-534.44506203,0.00012676,2]
[404677005,1770419432271,-534.44506203,0.00012676,2]
[404677006,1770419432280,-120.07518985,0.00012676,2]
[404677007,1770419439426,-414.36987218,0.00012676,2]
[404677008,1770419439436,-534.44506203,0.00012676,2]
[404677009,1770419439446,-534.44506203,0.00012676,2]
[404677010,1770419439455,-534.44506203,0.00012676,2]
[404677011,1770419439465,-534.44506203,0.00012676,2]
[404677012,1770419439475,-534.44506203,0.00012676,2]
[404677013,1770419439484,-534.44506203,0.00012676,2]
[404677014,1770419439494,-534.44506203,0.00012676,2]
[404677015,1770419439503,-534.44506203,0.00012676,2]
[404677016,1770419439512,-534.44506203,0.00012676,2]
[404677017,1770419439521,-534.44506203,0.00012676,2]
[404677018,1770419439531,-534.44506203,0.00012676,2]
[404677019,1770419439541,-534.44506203,0.00012676,2]
[404677020,1770419439550,-534.44506203,0.00012676,2]
[404677021,1770419439560,-157.84432143,0.00012676,2]
[404677022,1770419439571,-376.6007406,0.00012676,2]
[404677023,1770419439580,-534.44506203,0.00012676,2]
[404677024,1770419439589,-534.44506203,0.00012676,2]
[404677025,1770419439599,-421.87047335,0.00012676,2]
[404677026,1770419439611,-112.57458868,0.00012676,2]
[404677027,1770419439620,-534.44506203,0.00012676,2]
[404677028,1770419439629,-534.44506203,0.00012676,2]
[404677029,1770419439638,-534.44506203,0.00012676,2]
[404677030,1770419439647,-534.44506203,0.00012676,2]
[404677031,1770419439656,-534.44506203,0.00012676,2]
[404677032,1770419439666,-534.44506203,0.00012676,2]
[404677033,1770419439675,-534.44506203,0.00012676,2]